fUSD/lending_fUSD_20240319
["ID","MTS","AMOUNT","RATE_DAILY","PERIOD"]
[319555164,1710852637409,-151.0,0.00036879,7]
[319555165,1710852637419,-151.0,0.00036879,7]
[319555166,1710852637430,-151.0,0.00036879,7]
[319555167,1710852637443,-151.0,0.00036879,7]
[319555168,1710852637453,-151.0,0.00036879,7]
[319555169,1710852637462,-162.530441,0.00036879,7]
[319555170,1710852637472,-151.0,0.00036879,7]
[319555171,1710852637482,-162.530441,0.00036879,7]
[319555172,1710852637492,-577.196952,0.00036879,7]
[319555173,1710852637501,-577.196952,0.00036879,7]
[319555174,1710852637511,-227.531088,0.00036879,7]
[319555175,1710852637521,-227.531088,0.00036879,7]
[319555176,1710852637530,-290.4848152,0.00036879,2]
[319555177,1710852637539,-290.4848152,0.00036879,2]
[319555178,1710852637549,-332080.09996808,0.0003688,2]
[319555179,1710852637571,-32773.9828428,0.0003688,2]
[319555180,1710852637583,-2637.02456034,0.0003688,2]
[319555181,1710852637614,-398.24721211,0.0003688,2]
[319555258,1710852639443,-150.0,0.00027186,2]
[319555259,1710852639453,-151.0,0.000368,7]
[319555260,1710852639463,-29.97443868,0.0003688,7]
[319555261,1710852639475,-1065.77034384,0.0003688,7]
[319555262,1710852639486,-1596.62771302,0.0003688,7]
[319555263,1710852639511,-642.33270206,0.0003688,7]
[319555264,1710852639522,-58742.3555253,0.0003688,7]
[319555265,1710852639534,-7234.19999991,0.0003688,7]
[319555266,1710852639546,-9415.18758366,0.0003688,7]
[319555269,1710852640428,-151.0,0.0003687,7]
[319555270,1710852640442,-179970.43398223,0.0003688,7]
[319555271,1710852640454,-4753.8542885,0.0003688,7]
[319555272,1710852640466,-63671.00000001,0.0003688,7]
[319555273,1710852640477,-477.53158026,0.0003688,7]
[319555274,1710852640526,-717.19152,0.0003688,7]
[319555275,1710852640538,-1418.06590722,0.0003688,7]
[319555276,1710852640590,-31885.09808,0.0003688,7]
[319555277,1710852640602,-625.09983563,0.0003688,7]
[319555278,1710852640614,-3306.68192229,0.0003688,7]
[319555279,1710852640625,-401.70931708,0.0003688,7]
[319555280,1710852640745,-2859.93115561,0.0003688,7]
[319555311,1710852644030,-927.0,0.00034487,5]
[319555313,1710852644039,-650.96828781,0.000366,2]
[319555315,1710852644049,-150.0,0.0003673,2]
[319555317,1710852644058,-3747.00315544,0.0003688,7]
[319555319,1710852644074,-2261.6800012,0.0003688,7]
[319555322,1710852644105,-2848.95629245,0.0003688,7]
[319555324,1710852644122,-638.19340764,0.0003688,7]
[319555326,1710852644141,-388.37060468,0.0003688,7]
[319555329,1710852644164,-151.0,0.000368,7]
[319555331,1710852644174,-17799.38734243,0.0003688,7]
[319555334,1710852644198,-771.69283061,0.0003688,7]
[319555336,1710852644217,-458.605001,0.0003688,7]
[319555338,1710852644228,-607.18000012,0.0003688,7]
[319555341,1710852644245,-2270154.53721482,0.0003688,7]
[319555343,1710852644261,-1820.09548476,0.0003688,7]
[319555630,1710852646573,-576.66925928,0.0003678,2]
[319555633,1710852646584,-162.81097446,0.00036879,4]
[319555639,1710852646596,-136.38603461,0.00036879,4]
[319555642,1710852646605,-2850.44046539,0.0003688,7]
[319555645,1710852646616,-306.76,0.0003688,7]
[319555661,1710852646804,-2010.42471889,0.0003688,7]
[319555670,1710852646882,-3023.8511,0.0003688,7]
[319555727,1710852694607,363.66334037,0.00012599,2]
[319555735,1710852757742,26617.5368,0.000139,2]
[319555736,1710852815068,324.21793367,0.00013999,5]
[319555744,1710853014656,-499.05442867,0.00013997,2]
[319555745,1710853014678,-2469.91568954,0.00013998,2]
[319555746,1710853014699,-182.33263939,0.00013998,2]
[319555747,1710853014721,-14848.6972424,0.00013999,2]
[319555748,1710853031601,-500.0,0.00013999,2]
[319555749,1710853124466,-160.07,0.00026513,120]
[319555750,1710853124504,-30.37,0.00033,30]
[319555751,1710853136142,161.23540234,0.000139,2]
[319555752,1710853168251,-12000.0,0.00013999,2]
[319555753,1710853226215,-275.391226,0.00013998,2]
[319555754,1710853226238,-22459.74062995,0.00013999,2]
[319555755,1710853226260,-18264.86814405,0.00014,2]
[319555756,1710853251906,-1000.0,0.00014,2]
[319555760,1710853500890,9587.8955,0.000139,2]
[319555811,1710853724827,847.93748769,0.00013448,2]
[319555812,1710853724852,67946.06251231,0.00013448,2]
[319555813,1710853828734,158.00696629,0.0001,2]
[319555855,1710853831580,-247.05623043,0.00013999,2]
[319555857,1710853831594,-324.95880764,0.00014,2]
[319555860,1710853831608,-280.83854349,0.00014,2]
[319555861,1710853831620,-1653.71037969,0.00014,2]
[319555862,1710853831633,-10912.30695375,0.00014,2]
[319555893,1710853832514,-415.57440224,0.00014,2]
[319555894,1710853832528,-1047.0,0.00014,2]
[319555895,1710853832540,-4654.44,0.00014,2]
[319555896,1710853832565,-1260.95216954,0.00014,2]
[319555897,1710853832581,-3515.27882755,0.00014,2]
[319555898,1710853832594,-566.55211337,0.00014,2]
[319555899,1710853832607,-603.26280652,0.00014,2]
[319555900,1710853832618,-740.58240107,0.00014,2]
[319555901,1710853832630,-500.53973003,0.00014,2]
[319555902,1710853832642,-995.87545876,0.00014,2]
[319555903,1710853832704,-167.5914346,0.00014,2]
[319555904,1710853832716,-499351.2848015,0.00014,2]
[319555905,1710853832726,-612.48991527,0.000174,2]
[319555906,1710853832735,-700.0,0.000175,5]
[319555907,1710853832744,-3240.01925606,0.00017889,2]
[319555908,1710853832754,-1542.32287726,0.00018,2]
[319555909,1710853832763,-1099.71763614,0.00018,2]
[319555910,1710853832773,-161.23540229,0.0001842,2]
[319555911,1710853832783,-1000.0,0.000188,2]
[319555912,1710853832793,-514.60025625,0.00019178,2]
[319555913,1710853832802,-151.41670519,0.00019632,2]
[319555914,1710853832811,-531.52,0.00019632,2]
[319555915,1710853832821,-7259.4,0.00019632,2]
[319555916,1710853832832,-150.99,0.00019632,2]
[319555917,1710853832842,-154.93171572,0.00019881,2]
[319555918,1710853832852,-154.93171572,0.00019953,2]
[319555919,1710853832861,-380.0,0.0002,2]
[319555920,1710853832870,-154.93171572,0.00020122,2]
[319555921,1710853832880,-152.5484999,0.00020353,2]
[319555922,1710853832890,-151.41670519,0.000207,2]
[319555923,1710853832899,-154.98704221,0.0002073,2]
[319555924,1710853832908,-150.83869532,0.0002089,2]
[319555925,1710853832917,-166.66666666,0.00021534,2]
[319555926,1710853832926,-612.48991524,0.00021554,2]
[319555927,1710853832936,-157.08516355,0.00022064,2]
[319555928,1710853832945,-152.75025118,0.00022242,2]
[319555929,1710853832955,-151.01273991,0.00022455,2]
[319555930,1710853832965,-1500.0,0.00022462,4]
[319555931,1710853832975,-163.17,0.00022498,2]
[319555932,1710853832984,-500.0,0.00022525,2]
[319555933,1710853832994,-250.0,0.00022574,2]
[319555934,1710853833003,-1322.19,0.00022587,2]
[319555935,1710853833012,-154.93171572,0.00022635,2]
[319555936,1710853833022,-200.0,0.00022659,2]
[319555937,1710853833031,-164.73,0.0002266,2]
[319555938,1710853833042,-161.87,0.00022684,10]
[319555939,1710853833052,-250.0,0.00022685,2]
[319555940,1710853833062,-165.86,0.00022703,2]
[319555941,1710853833071,-250.0,0.00022711,2]
[319555942,1710853833080,-150.0,0.00022711,2]
[319555943,1710853833091,-161.23540229,0.0002294,2]
[319555944,1710853833101,-250.0,0.00023,3]
[319555945,1710853833112,-154.98704221,0.00023077,2]
[319555946,1710853833121,-501.84,0.00023195,2]
[319555947,1710853833130,-152.75025118,0.00023296,2]
[319555948,1710853833140,-301.16982392,0.0002386,2]
[319555949,1710853833150,-154.9,0.00024183,2]
[319555950,1710853833160,-154.98704221,0.00024193,2]
[319555951,1710853833170,-150.83869532,0.00024294,2]
[319555952,1710853833181,-152.75025118,0.00024402,2]
[319555953,1710853833190,-154.93171572,0.00024554,2]
[319555954,1710853833201,-150.83869532,0.00024794,2]
[319555955,1710853833211,-151.60118373,0.00024803,2]
[319555956,1710853833220,-162.73,0.00024824,2]
[319555957,1710853833230,-23900.0,0.00024842,2]
[319555958,1710853833239,-154.9,0.00024863,2]
[319555959,1710853833249,-1852.42,0.00024907,2]
[319555960,1710853833259,-321.65,0.00024942,2]
[319555961,1710853833268,-15219.94061712,0.00025,2]
[319555962,1710853833278,-150.83869532,0.00025077,2]
[319555963,1710853833287,-1322.19,0.00025327,2]
[319555964,1710853833296,-154.93171572,0.00025371,2]
[319555965,1710853833306,-161.87,0.00025423,10]
[319555966,1710853833315,-152.75025118,0.00025443,2]
[319555967,1710853833324,-501.84,0.00025459,2]
[319555968,1710853833334,-154.9,0.00025543,2]
[319555969,1710853833346,-246.69,0.00025607,2]
[319555970,1710853833355,-612.48991524,0.00025707,2]
[319555971,1710853833364,-152.5484999,0.00025897,2]
[319555972,1710853833373,-154.9,0.00026223,2]
[319555973,1710853833382,-154.9,0.00026903,2]
[319555974,1710853833391,-360.32,0.00026928,2]
[319555975,1710853833400,-167.0,0.00027367,2]
[319555976,1710853833409,-1000.0,0.00027425,2]
[319555977,1710853833418,-161.23540229,0.0002746,2]
[319555978,1710853833427,-501.84,0.00027723,2]
[319555979,1710853833436,-151.79690489,0.00027821,2]
[319555980,1710853833445,-151.79690489,0.00027906,2]
[319555981,1710853833455,-1000.0,0.00027945,2]
[319555982,1710853833467,-1322.19,0.00028067,2]
[319555983,1710853833477,-152.75025118,0.00028083,2]
[319555984,1710853833486,-161.87,0.00028163,10]
[319555985,1710853833496,-154.11102108,0.00028267,2]
[319555986,1710853833509,-165.86,0.00028379,120]
[319555987,1710853833518,-167.0,0.00028872,2]
[319555988,1710853833527,-439.45895503,0.000295,3]
[319555989,1710853833538,-157.08516355,0.00029502,2]
[319555990,1710853833549,-155.0817669,0.00029721,2]
[319555991,1710853833559,-152.69015608,0.00029779,2]
[319555992,1710853833568,-612.48991524,0.00029861,4]
[319555993,1710853833578,-150.83869532,0.00029865,2]
[319555994,1710853833590,-501.84,0.00029987,2]
[319555995,1710853833599,-360.32,0.00030294,2]
[319555996,1710853833608,-154.93171572,0.00030345,7]
[319555997,1710853833619,-167.0,0.00030378,2]
[319555998,1710853833628,-154.93171572,0.00030534,7]
[319555999,1710853833638,-154.93171572,0.00030608,7]
[319556000,1710853833647,-161.87,0.00030903,10]
[319556001,1710853833657,-154.93171572,0.00031393,7]
[319556002,1710853833666,-150.83869532,0.00031849,7]
[319556003,1710853833676,-167.0,0.00031883,2]
[319556004,1710853833687,-154.93171572,0.00031948,7]
[319556005,1710853833697,-161.23540229,0.0003198,2]
[319556006,1710853833706,-152.75025118,0.00032002,7]
[319556007,1710853833715,-150.83869532,0.00032187,7]
[319556008,1710853833725,-501.84,0.00032251,2]
[319556009,1710853833734,-154.98704221,0.0003233,7]
[319556010,1710853833744,-5668.7063,0.00032403,2]
[319556011,1710853833753,-24261.0775,0.00032403,2]
[319556012,1710853833763,-165.56873329,0.00032478,7]
[319556013,1710853833773,-151.41670519,0.0003279,7]
[319556014,1710853833782,-1262.43520131,0.00033,30]
[319556015,1710853833796,-1712.57125797,0.00033,30]
[319556016,1710853833808,-567.75368468,0.00033,30]
[319556017,1710853833832,-589.1351042,0.00033,30]
[319556018,1710853833845,-381.72189775,0.00033,30]
[319556053,1710853837622,-412.98062554,0.00033,30]
[319556061,1710853837684,-3176.29999998,0.00033,30]
[319556076,1710853837947,-16785.91682934,0.00033,30]
[319556082,1710853838001,-30487.80015338,0.00033,30]
[319556084,1710853838010,-151.0,0.00033139,2]
[319556086,1710853838020,-150.83869532,0.00033272,7]
[319556088,1710853838029,-152.5484999,0.00033386,7]
[319556089,1710853838039,-190.846248,0.00033425,14]
[319556091,1710853838048,-154.98704221,0.0003347,7]
[319556093,1710853838057,-158.54,0.000335,2]
[319556095,1710853838067,-161.87,0.00033643,10]
[319556096,1710853838076,-360.32,0.00033659,2]
[319556098,1710853838085,-302.0,0.00033695,4]
[319556100,1710853838096,-200.0,0.00033989,2]
[319556101,1710853838105,-612.48991524,0.00034014,6]
[319556102,1710853838115,-165.86,0.00034055,120]
[319556103,1710853838125,-1000.0,0.000342,7]
[319556104,1710853838135,-190.846248,0.00034247,14]
[319556105,1710853838145,-604.0,0.00034262,7]
[319556106,1710853838155,-827.0,0.00034361,5]
[319556107,1710853838165,-501.84,0.00034515,2]
[319556108,1710853838176,-154.93171572,0.00034537,7]
[319556109,1710853838185,-166.99392,0.00034838,4]
[319556110,1710853838195,-1000.0,0.000349,7]
[319556111,1710853838205,-1000.0,0.000349,7]
[319556112,1710853838216,-1000.0,0.000349,7]
[319556113,1710853838226,-1000.0,0.000349,7]
[319556114,1710853838235,-157.08516355,0.00034921,7]
[319556115,1710853838245,-154.98704221,0.0003502,7]
[319556116,1710853838254,-190.846248,0.00035068,14]
[319556117,1710853838264,-154.93171572,0.0003509,7]
[319556118,1710853838274,-164.31610951,0.0003522,7]
[319556119,1710853838283,-154.93171572,0.00035528,7]
[319556120,1710853838293,-200.0,0.00035616,2]
[319556121,1710853838302,-150.83869532,0.00035688,7]
[319556122,1710853838312,-150.22,0.00035848,2]
[319556123,1710853838322,-246.69,0.00035849,2]
[319556124,1710853838332,-156.34,0.00035877,120]
[319556125,1710853838342,-190.846248,0.0003589,14]
[319556126,1710853838353,-250.0,0.00036,2]
[319556127,1710853838363,-150.0,0.00036,2]
[319556128,1710853838372,-179.19521252,0.00036069,2]
[319556129,1710853838382,-152.5484999,0.00036152,7]
[319556130,1710853838391,-1263.0,0.00036169,2]
[319556131,1710853838401,-802.926,0.00036169,2]
[319556132,1710853838411,-3000.0,0.00036169,2]
[319556133,1710853838421,-413.0,0.00036169,2]
[319556134,1710853838431,-1136.0,0.00036169,2]
[319556135,1710853838440,-150.315,0.00036169,2]
[319556136,1710853838450,-1459.0,0.00036169,2]
[319556137,1710853838461,-2419.0,0.00036169,2]
[319556138,1710853838470,-150.0,0.00036169,2]
[319556139,1710853838480,-1623.0,0.00036169,2]
[319556140,1710853838490,-213.0,0.00036169,2]
[319556141,1710853838502,-42890.0,0.00036169,2]
[319556142,1710853838513,-4763.0,0.00036169,2]
[319556143,1710853838522,-5670.0,0.00036169,2]
[319556144,1710853838531,-2445.0,0.00036169,2]
[319556145,1710853838541,-1048.724,0.00036169,2]
[319556146,1710853838550,-154.98704221,0.000363,7]
[319556147,1710853838559,-64832.59017831,0.000363,7]
[319556148,1710853838569,-161.87,0.00036382,10]
[319556149,1710853838579,-153.02334127,0.00036409,2]
[319556150,1710853838590,-151.41670519,0.00036477,7]
[319556151,1710853838603,-161.23540229,0.000365,2]
[319556152,1710853838613,-249.65614262,0.00036509,4]
[319556153,1710853838623,-170.94948522,0.00036511,3]
[319556154,1710853838633,-31916.82094136,0.0003652,2]
[319556155,1710853838643,-200.0,0.00036584,10]
[319556156,1710853838653,-200.0,0.00036584,10]
[319556157,1710853838663,-200.0,0.00036585,10]
[319556158,1710853838672,-200.0,0.00036585,10]
[319556159,1710853838682,-200.0,0.00036585,10]
[319556160,1710853838692,-200.0,0.00036585,10]
[319556161,1710853838701,-31156.9457703,0.000366,2]
[319556162,1710853838711,-31156.94577021,0.000366,2]
[319556163,1710853838721,-31156.94577021,0.000366,2]
[319556164,1710853838730,-31156.94577021,0.000366,2]
[319556165,1710853838739,-31156.94577021,0.000366,2]
[319556166,1710853838749,-31156.94577021,0.000366,2]
[319556167,1710853838759,-601.75662033,0.000366,2]
[319556168,1710853838768,-601.7566203,0.000366,2]
[319556169,1710853838779,-601.7566203,0.000366,2]
[319556170,1710853838789,-601.7566203,0.000366,2]
[319556171,1710853838799,-601.7566203,0.000366,2]
[319556172,1710853838808,-601.7566203,0.000366,2]
[319556173,1710853838818,-157.08516355,0.00036615,7]
[319556174,1710853838828,-4975.67775968,0.00036679,9]
[319556175,1710853838838,-190.846248,0.00036712,14]
[319556176,1710853838851,-154.93171572,0.00036747,7]
[319556177,1710853838860,-154.98704221,0.00036753,7]
[319556178,1710853838870,-151.41670519,0.00036778,7]
[319556179,1710853838880,-501.84,0.00036779,2]
[319556180,1710853838890,-7500.0,0.0003678,2]
[319556181,1710853838899,-384.44617286,0.0003678,2]
[319556182,1710853838908,-186.5806602,0.0003678,7]
[319556183,1710853838918,-609.91195072,0.0003678,2]
[319556184,1710853838927,-548.24849518,0.0003678,2]
[319556185,1710853838937,-150.0,0.000368,11]
[319556186,1710853838946,-103030.23908882,0.000368,5]
[319556187,1710853838956,-1482.74105,0.0003682,2]
[319556188,1710853838966,-1926.31,0.00036876,60]
[319556189,1710853838976,-800.0,0.00036877,2]
[319556190,1710853838985,-500.0,0.00036877,2]
[319556191,1710853838995,-29800.77133861,0.00036878,4]
[319556192,1710853839005,-400010.22327971,0.00036878,2]
[319556193,1710853839015,-1216.46329409,0.00036878,4]
[319556194,1710853839025,-241.369883,0.00036878,7]
[319556195,1710853839036,-151.0,0.00036878,7]
[319556196,1710853839046,-151.0,0.00036878,7]
[319556197,1710853839057,-151.0,0.00036878,7]
[319556198,1710853839067,-153.054484,0.00036878,7]
[319556199,1710853839076,-151.0,0.00036878,7]
[319556200,1710853839086,-151.0,0.00036878,7]
[319556201,1710853839096,-151.0,0.00036878,7]
[319556202,1710853839106,-151.0,0.00036878,7]
[319556203,1710853839115,-348.379214,0.00036878,7]
[319556204,1710853839125,-151.0,0.00036878,7]
[319556205,1710853839134,-348.379214,0.00036878,7]
[319556206,1710853839145,-151.0,0.00036878,7]
[319556207,1710853839155,-151.0,0.00036878,7]
[319556208,1710853839164,-151.0,0.00036878,7]
[319556209,1710853839174,-151.0,0.00036878,7]
[319556210,1710853839183,-151.0,0.00036878,7]
[319556211,1710853839192,-151.0,0.00036878,7]
[319556212,1710853839202,-151.0,0.00036878,7]
[319556213,1710853839212,-151.0,0.00036878,7]
[319556214,1710853839222,-151.0,0.00036878,7]
[319556215,1710853839231,-151.0,0.00036878,7]
[319556216,1710853839241,-290.971349,0.00036878,7]
[319556217,1710853839251,-290.971349,0.00036878,7]
[319556218,1710853839261,-151.0,0.00036878,7]
[319556219,1710853839270,-151.0,0.00036878,7]
[319556220,1710853839279,-1858.858984,0.00036878,7]
[319556221,1710853839289,-1858.858984,0.00036878,7]
[319556222,1710853839299,-151.0,0.00036878,7]
[319556223,1710853839309,-151.0,0.00036878,7]
[319556224,1710853839318,-151.0,0.00036878,7]
[319556225,1710853839328,-151.0,0.00036878,7]
[319556226,1710853839337,-151.0,0.00036878,7]
[319556227,1710853839349,-357.074468,0.00036878,7]
[319556228,1710853839358,-357.074468,0.00036878,7]
[319556229,1710853839368,-151.0,0.00036878,7]
[319556230,1710853839378,-151.243965,0.00036878,7]
[319556231,1710853839387,-151.0,0.00036878,7]
[319556232,1710853839397,-220.611132,0.00036878,7]
[319556233,1710853839406,-220.611132,0.00036878,7]
[319556234,1710853839416,-3963.83282218,0.00036879,2]
[319556235,1710853839425,-201.22667184,0.00036879,2]
[319556236,1710853839435,-324.21793368,0.00036879,30]
[319556237,1710853839445,-324.21793368,0.00036879,30]
[319556238,1710853839454,-324.21793368,0.00036879,30]
[319556239,1710853839465,-205.08560438,0.00036879,2]
[319556240,1710853839474,-300.0,0.00036879,2]
[319556241,1710853839484,-380.830886,0.00036879,2]
[319556242,1710853839494,-300.0,0.00036879,10]
[319556243,1710853839506,-99149.45292158,0.0003688,2]
[319556244,1710853839520,-10669.50556599,0.0003688,2]
[319556245,1710853839532,-29629.37542832,0.0003688,2]
[319556246,1710853839552,-19132.136746,0.0003688,2]
[319556250,1710853840033,-6186.79719226,0.0003688,2]
[319556252,1710853840044,-4372.2543162,0.0003688,2]
[319556266,1710853840222,-2230.1804654,0.0003688,2]
[319556274,1710853842793,-131.98570968,0.0003688,2]
[319556275,1710853842897,-316.63151377,0.0003688,2]
[319556276,1710853842965,-519.53723051,0.0003688,2]
[319556277,1710853842977,-475.675001,0.0003688,2]
[319556278,1710853842998,-574198.29677974,0.0003688,2]
[319556279,1710853843009,-16019.95106717,0.0003688,2]
[319556280,1710853843020,-25277.33250007,0.0003688,2]
[319556281,1710853843036,-2377.036302,0.0003688,2]
[319556282,1710853843048,-3017.08482148,0.0003688,2]
[319556288,1710853845595,-800.0,0.00032994,5]
[319556290,1710853845610,-1745.50806572,0.0003688,2]
[319556292,1710853845623,-6398.54993,0.0003688,2]
[319556295,1710853845635,-648.21,0.0003688,2]
[319556297,1710853845649,-1116.9999998,0.0003688,2]
[319556299,1710853845661,-1576.935,0.0003688,2]
[319556301,1710853845678,-69016.49329381,0.0003688,2]
[319556302,1710853845725,-3340.4,0.0003688,2]
[319556303,1710853845864,-1610.14008518,0.0003688,2]
[319556304,1710853845921,-31693.0610861,0.0003688,2]
[319556305,1710853845972,-16665.81756303,0.0003688,2]
[319556306,1710853845984,-2616.77659432,0.0003688,2]
[319556307,1710853845995,-2277.56678615,0.0003688,2]
[319556325,1710853953760,254.2358,0.000139,2]
[319556388,1710855031870,-198.89229765,0.00018999,2]
[319556389,1710855031880,-777.03549819,0.00019,2]
[319556390,1710855032097,-1952.8862605,0.00019,2]
[319556391,1710855032109,-1270.07824131,0.00019,2]
[319556392,1710855032119,-496.7454123,0.00019621,2]
[319556426,1710855037818,-249.3802885,0.00019621,2]
[319556429,1710855037829,-151.03343574,0.00019689,2]
[319556431,1710855037838,-151.7969049,0.00020594,2]
[319556433,1710855037849,-151.03343574,0.00020828,2]
[319556435,1710855037860,-157.08516356,0.00021985,2]
[319556437,1710855037870,-893.5695,0.00022595,2]
[319556438,1710855037880,-154.907594,0.00023101,2]
[319556439,1710855037889,-157.08516356,0.00023263,2]
[319556440,1710855037900,-154.907594,0.00023526,2]
[319556441,1710855037910,-499.99,0.00023526,2]
[319556442,1710855037920,-2216.36,0.00023824,2]
[319556443,1710855037929,-701.0,0.000264,3]
[319556444,1710855037939,-154.907594,0.00026526,2]
[319556445,1710855037948,-154.907594,0.00028599,2]
[319556446,1710855037959,-166.66666668,0.00030713,7]
[319556447,1710855037968,-326.19,0.00030819,2]
[319556448,1710855037978,-223.54433438,0.0003087,2]
[319556449,1710855037988,-153.38,0.00031013,5]
[319556450,1710855037998,-150.76,0.00031015,5]
[319556451,1710855038008,-151.48,0.0003104,5]
[319556452,1710855038018,-150.2,0.00031043,5]
[319556453,1710855038028,-151.61,0.00031147,5]
[319556454,1710855038039,-151.03343574,0.00031469,7]
[319556455,1710855038053,-250.0,0.00031917,2]
[319556456,1710855038063,-250.0,0.00032218,2]
[319556457,1710855038073,-156.34,0.00032307,120]
[319556458,1710855038082,-250.0,0.00032638,2]
[319556459,1710855038091,-161.87,0.00032696,10]
[319556460,1710855038101,-180.16,0.00032697,2]
[319556461,1710855038112,-6521.98,0.00032709,2]
[319556462,1710855038122,-162.73,0.00032793,2]
[319556463,1710855038132,-151.03343574,0.00033036,7]
[319556464,1710855038141,-326.19,0.00033083,2]
[319556465,1710855038151,-185.24,0.00033436,120]
[319556467,1710855038161,-158.54,0.000335,2]
[319556469,1710855038171,-154.907594,0.00033958,7]
[319556471,1710855038180,-2903.06168658,0.00035,2]
[319556473,1710855038189,-1003.02220017,0.00035,2]
[319556475,1710855038204,-326.19,0.00035347,2]
[319556477,1710855038214,-154.907594,0.0003573,7]
[319556479,1710855038224,-500.0,0.0003588,2]
[319556481,1710855038234,-500.0,0.0003588,2]
[319556484,1710855038244,-500.0,0.0003588,2]
[319556486,1710855038254,-506.13,0.0003588,2]
[319556488,1710855038264,-3003.49143052,0.00036,7]
[319556490,1710855038274,-300.0,0.0003628,2]
[319556492,1710855038284,-5099.81556926,0.00036379,2]
[319556494,1710855038299,-470.66365828,0.0003638,4]
[319556496,1710855038310,-170.0454245,0.00036511,3]
[319556498,1710855038319,-800.0,0.00036584,10]
[319556500,1710855038330,-200.0,0.00036585,10]
[319556502,1710855038340,-800.0,0.00036585,10]
[319556504,1710855038350,-1597.36,0.00036712,60]
[319556506,1710855038361,-12462.77830812,0.00036775,2]
[319556508,1710855038371,-15888.03731995,0.0003678,2]
[319556511,1710855038386,-977.27878005,0.0003678,2]
[319556513,1710855038398,-3464.84437816,0.0003678,2]
[319556515,1710855038411,-179.19521252,0.0003678,2]
[319556517,1710855038423,-281.09183564,0.0003678,9]
[319556519,1710855038435,-240.70264812,0.0003678,2]
[319556521,1710855038445,-1212.10709514,0.0003685,9]
[319556522,1710855038459,-908.6466,0.0003685,9]
[319556523,1710855038472,-1676.38670259,0.0003685,9]
[319556524,1710855038563,-419.6410628,0.0003685,9]
[319556525,1710855038613,-344.25648588,0.0003685,9]
[319556526,1710855038624,-1846.05,0.00036876,60]
[319556527,1710855038635,-4189.69351412,0.00036877,2]
[319556530,1710855039864,-740.83310956,0.00036877,2]
[319556531,1710855039876,-2290.92516525,0.00036877,2]
[319556532,1710855039887,-234.25946311,0.00036878,4]
[319556533,1710855039900,-535.85788251,0.00036878,4]
[319556534,1710855039911,-1737.61932229,0.00036878,4]
[319556535,1710855039922,-56.80813679,0.00036878,4]
[319556536,1710855039931,-6954.45456436,0.00036878,4]
[319556537,1710855039941,-658.63215977,0.00036878,4]
[319556538,1710855039951,-277.82975373,0.00036878,4]
[319556539,1710855039961,-286.25173273,0.00036878,4]
[319556540,1710855039971,-252.67499012,0.00036878,4]
[319556541,1710855040031,-413.46720358,0.00036878,4]
[319556542,1710855040048,-1548.64257758,0.00036878,4]
[319556543,1710855040058,-400.0,0.00036878,2]
[319556544,1710855040067,-613.82322464,0.00036878,4]
[319556545,1710855040080,-414.27739999,0.00036878,4]
[319556546,1710855040095,-24.67822652,0.00036878,4]
[319556547,1710855040105,-433.10450538,0.00036878,4]
[319556548,1710855040114,-933.41516606,0.00036878,4]
[319556549,1710855040126,-760.01039041,0.00036878,4]
[319556550,1710855040137,-738.70204546,0.00036878,4]
[319556551,1710855040149,-359.58943198,0.00036878,4]
[319556552,1710855040161,-668.16681472,0.00036878,4]
[319556553,1710855040178,-1415.55102347,0.00036878,4]
[319556554,1710855040189,-344.35963695,0.00036878,4]
[319556555,1710855040204,-630.36829734,0.00036878,4]
[319556557,1710855040231,-2589.9237793,0.00036878,4]
[319556559,1710855040241,-92.05705393,0.00036878,4]
[319556562,1710855040262,-521.67,0.00036878,4]
[319556587,1710855042916,-491.33363999,0.00036878,4]